fUST/lending_fUST_20250529
["ID","MTS","AMOUNT","RATE_DAILY","PERIOD"]
[362902934,1748518242137,-500.0,0.0001983,2]
[362902936,1748518242146,-423.0,0.0001983,2]
[362902938,1748518242155,-500.0,0.0001983,2]
[362902940,1748518242164,-500.0,0.0001983,2]
[362902942,1748518242173,-447.0,0.00019858,2]
[362902944,1748518242182,-500.0,0.00019858,2]
[362902946,1748518242192,-500.0,0.00019858,2]
[362902948,1748518242201,-423.0,0.00019858,2]
[362902950,1748518242210,-500.0,0.00019858,2]
[362902952,1748518242219,-500.0,0.00019858,2]
[362902954,1748518242228,-447.0,0.00019885,2]
[362902956,1748518242237,-500.0,0.00019885,2]
[362902957,1748518242247,-500.0,0.00019885,2]
[362902959,1748518242257,-423.0,0.00019885,2]
[362902961,1748518242266,-500.0,0.00019885,2]
[362902963,1748518242276,-500.0,0.00019885,2]
[362902965,1748518242285,-447.0,0.00019913,2]
[362902967,1748518242294,-500.0,0.00019913,2]
[362902969,1748518242303,-500.0,0.00019913,2]
[362902971,1748518242312,-423.0,0.00019913,2]
[362902973,1748518242322,-500.0,0.00019913,2]
[362902975,1748518242331,-500.0,0.00019913,2]
[362902977,1748518242340,-747.17179153,0.00019934,2]
[362902979,1748518242349,-447.0,0.0001994,2]
[362902981,1748518242359,-500.0,0.0001994,2]
[362902983,1748518242368,-500.0,0.0001994,2]
[362902985,1748518242377,-423.0,0.0001994,2]
[362902987,1748518242387,-500.0,0.0001994,2]
[362902989,1748518242396,-500.0,0.0001994,2]
[362902991,1748518242405,-447.0,0.00019967,2]
[362902993,1748518242414,-500.0,0.00019967,2]
[362902995,1748518242423,-500.0,0.00019967,2]
[362902997,1748518242432,-423.0,0.00019967,2]
[362902999,1748518242441,-500.0,0.00019967,2]
[362903001,1748518242451,-500.0,0.00019967,2]
[362903003,1748518242460,-447.0,0.00019995,2]
[362903005,1748518242470,-500.0,0.00019995,2]
[362903007,1748518242479,-500.0,0.00019995,2]
[362903009,1748518242488,-423.0,0.00019995,2]
[362903011,1748518242497,-500.0,0.00019995,2]
[362903013,1748518242506,-500.0,0.00019995,2]
[362903015,1748518242515,-430.0,0.0002,2]
[362903017,1748518242524,-157.89,0.0002,2]
[362903019,1748518242534,-430.0,0.0002,2]
[362903021,1748518242543,-430.0,0.0002,2]
[362903023,1748518242551,-552.52,0.0002,2]
[362903024,1748518242561,-430.0,0.0002,2]
[362903026,1748518242570,-430.0,0.0002,2]
[362903028,1748518242579,-430.0,0.0002,2]
[362903030,1748518242587,-430.0,0.0002,2]
[362903032,1748518242598,-430.0,0.0002,2]
[362903034,1748518242609,-490.0,0.0002,2]
[362903037,1748518242619,-546.13,0.0002,2]
[362903039,1748518242629,-430.0,0.0002,2]
[362903041,1748518242639,-430.0,0.0002,2]
[362903043,1748518242649,-430.0,0.0002,2]
[362903045,1748518242658,-430.0,0.0002,2]
[362903046,1748518242667,-430.0,0.0002,2]
[362903049,1748518242678,-430.0,0.0002,2]
[362903051,1748518242687,-430.0,0.0002,2]
[362903053,1748518242696,-430.0,0.0002,2]
[362903055,1748518242706,-430.0,0.0002,2]
[362903056,1748518242715,-430.0,0.0002,2]
[362903058,1748518242724,-390.0,0.0002,2]
[362903060,1748518242733,-430.0,0.0002,2]
[362903062,1748518242742,-430.0,0.0002,2]
[362903064,1748518242753,-430.0,0.0002,2]
[362903066,1748518242764,-430.0,0.0002,2]
[362903068,1748518242775,-430.0,0.0002,2]
[362903070,1748518242784,-430.0,0.0002,2]
[362903072,1748518242795,-490.0,0.0002,2]
[362903074,1748518242805,-430.0,0.0002,2]
[362903076,1748518242815,-490.0,0.0002,2]
[362903078,1748518242824,-430.0,0.0002,2]
[362903080,1748518242833,-319.68,0.0002,2]
[362903082,1748518242843,-430.0,0.0002,2]
[362903084,1748518242852,-430.0,0.0002,2]
[362903088,1748518242862,-430.0,0.0002,2]
[362903091,1748518242875,-430.0,0.0002,2]
[362903093,1748518242884,-430.0,0.0002,2]
[362903095,1748518242893,-430.0,0.0002,2]
[362903097,1748518242902,-430.0,0.0002,2]
[362903099,1748518242914,-430.0,0.0002,2]
[362903101,1748518242923,-430.0,0.0002,2]
[362903103,1748518242932,-430.0,0.0002,2]
[362903105,1748518242941,-430.0,0.0002,2]
[362903107,1748518242952,-430.0,0.0002,2]
[362903109,1748518242961,-430.0,0.0002,2]
[362903111,1748518242970,-430.0,0.0002,2]
[362903113,1748518242980,-430.0,0.0002,2]
[362903116,1748518242990,-430.0,0.0002,2]
[362903119,1748518243002,-266.75713331,0.0002,2]
[362903121,1748518243012,-466.93770404,0.0002,2]
[362903123,1748518243021,-430.0,0.0002,2]
[362903125,1748518243031,-430.0,0.0002,2]
[362903127,1748518243041,-430.0,0.0002,2]
[362903129,1748518243051,-430.0,0.0002,2]
[362903131,1748518243060,-430.0,0.0002,2]
[362903133,1748518243070,-430.0,0.0002,2]
[362903135,1748518243079,-450.0,0.0002,2]
[362903137,1748518243088,-430.0,0.0002,2]
[362903138,1748518243098,-430.0,0.0002,2]
[362903141,1748518243108,-430.0,0.0002,2]
[362903151,1748518243197,-430.0,0.0002,2]
[362903154,1748518243208,-430.0,0.0002,2]
[362903156,1748518243218,-430.0,0.0002,2]
[362903158,1748518243227,-430.0,0.0002,2]
[362903160,1748518243237,-821.8,0.0002,2]
[362903162,1748518243247,-430.0,0.0002,2]
[362903164,1748518243257,-430.0,0.0002,2]
[362903166,1748518243266,-430.0,0.0002,2]
[362903168,1748518243275,-430.0,0.0002,2]
[362903170,1748518243285,-430.0,0.0002,2]
[362903172,1748518243294,-430.0,0.0002,2]
[362903174,1748518243304,-430.0,0.0002,2]
[362903176,1748518243314,-177.52926263,0.0002,2]
[362903178,1748518243323,-430.0,0.0002,2]
[362903180,1748518243332,-430.0,0.0002,2]
[362903182,1748518243341,-1181.17592739,0.0002,2]
[362903184,1748518243350,-359.67846572,0.0002,2]
[362903186,1748518243359,-30000.0,0.0002,2]
[362903188,1748518243368,-2679.79057542,0.0002,2]
[362903190,1748518243377,-430.0,0.0002,2]
[362903192,1748518243386,-430.0,0.0002,2]
[362903194,1748518243395,-67300.38666463,0.0002,2]
[362903196,1748518243406,-430.0,0.0002,2]
[362903198,1748518243415,-430.0,0.0002,2]
[362903200,1748518243424,-1210.48,0.0002,2]
[362903202,1748518243433,-430.0,0.0002,2]
[362903204,1748518243443,-430.0,0.0002,2]
[362903206,1748518243452,-430.0,0.0002,2]
[362903208,1748518243461,-430.0,0.0002,2]
[362903210,1748518243470,-430.0,0.0002,2]
[362903212,1748518243479,-430.0,0.0002,2]
[362903214,1748518243488,-430.0,0.0002,2]
[362903216,1748518243498,-430.0,0.0002,2]
[362903219,1748518243508,-457.55,0.0002,2]
[362903222,1748518243517,-430.0,0.0002,2]
[362903224,1748518243526,-430.0,0.0002,2]
[362903226,1748518243536,-430.0,0.0002,2]
[362903228,1748518243545,-430.0,0.0002,2]
[362903230,1748518243554,-430.0,0.0002,2]
[362903232,1748518243565,-2174.08,0.0002,2]
[362903234,1748518243573,-430.0,0.0002,2]
[362903236,1748518243583,-430.0,0.0002,2]
[362903238,1748518243592,-430.0,0.0002,2]
[362903240,1748518243601,-430.0,0.0002,2]
[362903242,1748518243610,-430.0,0.0002,2]
[362903244,1748518243618,-430.0,0.0002,2]
[362903246,1748518243628,-430.0,0.0002,2]
[362903248,1748518243637,-430.0,0.0002,2]
[362903250,1748518243647,-430.0,0.0002,2]
[362903252,1748518243656,-430.0,0.0002,2]
[362903254,1748518243665,-430.0,0.0002,2]
[362903256,1748518243675,-430.0,0.0002,2]
[362903258,1748518243684,-541.87,0.0002,2]
[362903260,1748518243693,-1771.6,0.0002,2]
[362903262,1748518243702,-430.0,0.0002,2]
[362903264,1748518243712,-476.5160786,0.0002,2]
[362903266,1748518243722,-1000.0,0.00020021,2]
[362903268,1748518243731,-1003.93294425,0.00020021,2]
[362903270,1748518243740,-1000.0,0.00020021,2]
[362903272,1748518243750,-1000.0,0.00020021,2]
[362903274,1748518243759,-500.0,0.00020021,2]
[362903276,1748518243768,-1000.0,0.00020021,2]
[362903278,1748518243778,-802.49200617,0.00020021,2]
[362903280,1748518243787,-1000.0,0.00020021,2]
[362903282,1748518243797,-362.96414249,0.00020021,2]
[362903284,1748518243807,-447.0,0.00020022,2]
[362903286,1748518243816,-500.0,0.00020022,2]
[362903288,1748518243825,-500.0,0.00020022,2]
[362903290,1748518243835,-423.0,0.00020022,2]
[362903292,1748518243843,-500.0,0.00020022,2]
[362903294,1748518243853,-500.0,0.00020022,2]
[362903296,1748518243863,-447.0,0.0002005,2]
[362903298,1748518243875,-500.0,0.0002005,2]
[362903300,1748518243884,-500.0,0.0002005,2]
[362903302,1748518243894,-423.0,0.0002005,2]
[362903304,1748518243903,-500.0,0.0002005,2]
[362903306,1748518243914,-500.0,0.0002005,2]
[362903308,1748518243923,-447.0,0.00020077,2]
[362903310,1748518243932,-500.0,0.00020077,2]
[362903312,1748518243942,-423.0,0.00020077,2]
[362903314,1748518243952,-500.0,0.00020077,2]
[362903316,1748518243961,-381.79893203,0.00020077,2]
[362903318,1748518243971,-447.0,0.00020104,2]
[362903320,1748518243981,-500.0,0.00020104,2]
[362903322,1748518243990,-423.0,0.00020104,2]
[362903324,1748518243999,-500.0,0.00020104,2]
[362903326,1748518244009,-447.0,0.00020132,2]
[362903328,1748518244019,-500.0,0.00020132,2]
[362903330,1748518244028,-423.0,0.00020132,2]
[362903333,1748518244038,-225.61902988,0.00020132,2]
[362903335,1748518244047,-747.17179153,0.00020141,2]
[362903337,1748518244064,-447.0,0.00020159,2]
[362903340,1748518244080,-500.0,0.00020159,2]
[362903343,1748518244094,-423.0,0.00020159,2]
[362903345,1748518244105,-212.70147903,0.0002018,2]
[362903347,1748518244120,-160.0,0.0002018,2]
[362903351,1748518244146,-423.31762986,0.0002018,2]
[362903354,1748518244164,-160.0,0.0002018,2]
[362903357,1748518244180,-160.0,0.0002018,2]
[362903360,1748518244195,-160.0,0.0002018,2]
[362903362,1748518244212,-160.0,0.0002018,2]
[362903365,1748518244227,-842.5625,0.0002018,2]
[362903367,1748518244240,-160.0,0.0002018,2]
[362903370,1748518244258,-160.0,0.0002018,2]
[362903373,1748518244275,-447.0,0.00020187,2]
[362903375,1748518244291,-422.47185108,0.00020187,2]
[362903378,1748518244306,-423.0,0.00020187,2]
[362903380,1748518244319,-447.0,0.00020214,2]
[362903382,1748518244330,-423.0,0.00020214,2]
[362903385,1748518244343,-447.0,0.00020241,2]
[362903387,1748518244357,-423.0,0.00020241,2]
[362903390,1748518244370,-447.0,0.00020269,2]
[362903391,1748518244385,-423.0,0.00020269,2]
[362903392,1748518244399,-344.59748749,0.00020273,2]
[362903393,1748518244414,-430.0,0.00020273,2]
[362903394,1748518244429,-430.0,0.00020273,2]
[362903395,1748518244443,-320.5111075,0.00020273,2]
[362903396,1748518244454,-430.0,0.00020273,2]
[362903397,1748518244464,-430.0,0.00020273,2]
[362903398,1748518244476,-430.0,0.00020273,2]
[362903399,1748518244488,-430.0,0.00020273,2]
[362903400,1748518244502,-430.0,0.00020273,2]
[362903401,1748518244515,-430.0,0.00020273,2]
[362903403,1748518244525,-430.0,0.00020273,2]
[362903405,1748518244537,-430.0,0.00020273,2]
[362903408,1748518244550,-214.82,0.00020273,2]
[362903410,1748518244563,-430.0,0.00020273,2]
[362903412,1748518244574,-430.0,0.00020273,2]
[362903414,1748518244584,-430.0,0.00020273,2]
[362903417,1748518244595,-430.0,0.00020273,2]
[362903419,1748518244608,-430.0,0.00020273,2]
[362903421,1748518244620,-430.0,0.00020273,2]
[362903424,1748518244632,-430.0,0.00020273,2]
[362903426,1748518244645,-430.0,0.00020273,2]
[362903428,1748518244658,-430.0,0.00020273,2]
[362903431,1748518244670,-430.0,0.00020273,2]
[362903433,1748518244683,-430.0,0.00020273,2]
[362903435,1748518244695,-430.0,0.00020273,2]
[362903437,1748518244707,-430.0,0.00020273,2]
[362903439,1748518244719,-430.0,0.00020273,2]
[362903442,1748518244731,-430.0,0.00020273,2]
[362903444,1748518244743,-430.0,0.00020273,2]
[362903446,1748518244755,-430.0,0.00020273,2]
[362903449,1748518244767,-430.0,0.00020273,2]
[362903451,1748518244779,-430.0,0.00020273,2]
[362903453,1748518244792,-430.0,0.00020273,2]
[362903456,1748518244803,-430.0,0.00020273,2]
[362903458,1748518244814,-430.0,0.00020273,2]
[362903460,1748518244826,-430.0,0.00020273,2]
[362903462,1748518244837,-151.85,0.00020273,2]
[362903464,1748518244849,-430.0,0.00020273,2]
[362903467,1748518244861,-430.0,0.00020273,2]
[362903469,1748518244876,-821.8,0.00020273,2]
[362903471,1748518244888,-470.0,0.00020273,2]
[362903473,1748518244900,-430.0,0.00020273,2]
[362903476,1748518244912,-430.0,0.00020273,2]
[362903478,1748518244925,-430.0,0.00020273,2]
[362903480,1748518244938,-430.0,0.00020273,2]
[362903482,1748518244950,-430.0,0.00020273,2]
[362903484,1748518244962,-430.0,0.00020273,2]
[362903486,1748518244976,-430.0,0.00020273,2]
[362903489,1748518244988,-430.0,0.00020273,2]
[362903491,1748518244999,-430.0,0.00020273,2]
[362903493,1748518245012,-430.0,0.00020273,2]
[362903495,1748518245025,-430.0,0.00020273,2]
[362903498,1748518245038,-1210.48,0.00020273,2]
[362903500,1748518245050,-430.0,0.00020273,2]
[362903502,1748518245063,-430.0,0.00020273,2]
[362903504,1748518245075,-430.0,0.00020273,2]
[362903507,1748518245087,-430.0,0.00020273,2]
[362903509,1748518245099,-430.0,0.00020273,2]
[362903511,1748518245111,-430.0,0.00020273,2]
[362903513,1748518245124,-430.0,0.00020273,2]
[362903515,1748518245135,-430.0,0.00020273,2]
[362903518,1748518245147,-457.55,0.00020273,2]
[362903520,1748518245159,-430.0,0.00020273,2]
[362903522,1748518245170,-430.0,0.00020273,2]
[362903524,1748518245182,-430.0,0.00020273,2]
[362903527,1748518245193,-2174.08,0.00020273,2]
[362903541,1748518245323,-430.0,0.00020273,2]
[362903544,1748518245342,-430.0,0.00020273,2]
[362903546,1748518245353,-430.0,0.00020273,2]
[362903548,1748518245365,-430.0,0.00020273,2]
[362903550,1748518245375,-430.0,0.00020273,2]
[362903552,1748518245386,-430.0,0.00020273,2]
[362903554,1748518245397,-283.08,0.00020273,2]
[362903556,1748518245408,-541.87,0.00020273,2]
[362903558,1748518245419,-1771.6,0.00020273,2]
[362903560,1748518245430,-430.0,0.00020273,2]
[362903562,1748518245441,-464.689026,0.00020296,2]
[362903564,1748518245452,-423.31774589,0.00020296,2]
[362903566,1748518245463,-747.17179153,0.00020348,3]
[362903568,1748518245474,-250.0,0.000205,2]
[362903570,1748518245485,-719.11481591,0.00020509,2]
[362903572,1748518245496,-430.0,0.00020547,2]
[362903574,1748518245511,-430.0,0.00020547,2]
[362903576,1748518245522,-430.0,0.00020547,2]
[362903578,1748518245533,-430.0,0.00020547,2]
[362903580,1748518245548,-430.0,0.00020547,2]
[362903582,1748518245558,-430.0,0.00020547,2]
[362903584,1748518245568,-430.0,0.00020547,2]
[362903586,1748518245579,-430.0,0.00020547,2]
[362903588,1748518245589,-161.79,0.00020547,2]
[362903590,1748518245600,-430.0,0.00020547,2]
[362903593,1748518245610,-430.0,0.00020547,2]
[362903595,1748518245620,-430.0,0.00020547,2]
[362903597,1748518245630,-430.0,0.00020547,2]
[362903598,1748518245639,-430.0,0.00020547,2]
[362903600,1748518245648,-430.0,0.00020547,2]
[362903602,1748518245657,-430.0,0.00020547,2]
[362903604,1748518245667,-430.0,0.00020547,2]
[362903606,1748518245677,-430.0,0.00020547,2]
[362903608,1748518245687,-430.0,0.00020547,2]
[362903610,1748518245697,-430.0,0.00020547,2]
[362903612,1748518245706,-430.0,0.00020547,2]
[362903614,1748518245716,-430.0,0.00020547,2]
[362903616,1748518245726,-430.0,0.00020547,2]
[362903618,1748518245735,-430.0,0.00020547,2]
[362903620,1748518245744,-430.0,0.00020547,2]
[362903622,1748518245758,-430.0,0.00020547,2]
[362903624,1748518245766,-430.0,0.00020547,2]
[362903626,1748518245775,-821.8,0.00020547,2]
[362903628,1748518245784,-430.0,0.00020547,2]
[362903630,1748518245793,-430.0,0.00020547,2]
[362903632,1748518245802,-430.0,0.00020547,2]
[362903634,1748518245811,-430.0,0.00020547,2]
[362903636,1748518245821,-430.0,0.00020547,2]
[362903639,1748518245830,-430.0,0.00020547,2]
[362903641,1748518245839,-430.0,0.00020547,2]
[362903643,1748518245848,-430.0,0.00020547,2]
[362903645,1748518245858,-1210.48,0.00020547,2]
[362903647,1748518245869,-430.0,0.00020547,2]
[362903649,1748518245878,-430.0,0.00020547,2]
[362903651,1748518245888,-430.0,0.00020547,2]
[362903653,1748518245897,-430.0,0.00020547,2]
[362903655,1748518245908,-430.0,0.00020547,2]
[362903658,1748518245918,-430.0,0.00020547,2]
[362903659,1748518245928,-430.0,0.00020547,2]
[362903662,1748518245938,-457.55,0.00020547,2]
[362903663,1748518245949,-430.0,0.00020547,2]
[362903665,1748518245959,-2174.08,0.00020547,2]
[362903667,1748518245968,-430.0,0.00020547,2]
[362903669,1748518245978,-430.0,0.00020547,2]
[362903671,1748518245987,-430.0,0.00020547,2]
[362903673,1748518245996,-304.7173,0.00020547,2]
[362903675,1748518246009,-430.0,0.00020547,2]
[362903677,1748518246018,-430.0,0.00020547,2]
[362903679,1748518246028,-541.87,0.00020547,2]
[362903681,1748518246038,-1771.6,0.00020547,2]
[362903683,1748518246050,-430.0,0.00020547,2]
[362903686,1748518246060,-747.17179153,0.00020555,3]
[362903687,1748518246069,-154.796,0.00020561,2]
[362903689,1748518246079,-747.17179153,0.00020762,3]
[362903691,1748518246088,-160.0,0.0002082,2]
[362903693,1748518246097,-430.0,0.00020821,2]
[362903695,1748518246107,-430.0,0.00020821,2]
[362903697,1748518246116,-399.63450631,0.00020821,2]
[362903699,1748518246125,-430.0,0.00020821,2]
[362903701,1748518246134,-430.0,0.00020821,2]
[362903703,1748518246144,-430.0,0.00020821,2]
[362903705,1748518246153,-430.0,0.00020821,2]
[362903707,1748518246162,-430.0,0.00020821,2]
[362903709,1748518246172,-430.0,0.00020821,2]
[362903711,1748518246181,-430.0,0.00020821,2]
[362903713,1748518246190,-430.0,0.00020821,2]
[362903715,1748518246199,-430.0,0.00020821,2]
[362903717,1748518246207,-430.0,0.00020821,2]
[362903719,1748518246215,-430.0,0.00020821,2]
[362903722,1748518246224,-430.0,0.00020821,2]
[362903724,1748518246233,-549.43823691,0.00020821,2]
[362903726,1748518246241,-821.8,0.00020821,2]
[362903728,1748518246253,-430.0,0.00020821,2]
[362903730,1748518246261,-430.0,0.00020821,2]
[362903732,1748518246270,-430.0,0.00020821,2]
[362903734,1748518246277,-430.0,0.00020821,2]
[362903736,1748518246286,-430.0,0.00020821,2]
[362903738,1748518246295,-430.0,0.00020821,2]
[362903740,1748518246303,-1210.48,0.00020821,2]
[362903742,1748518246312,-430.0,0.00020821,2]
[362903744,1748518246322,-430.0,0.00020821,2]
[362903746,1748518246331,-430.0,0.00020821,2]
[362903749,1748518246341,-430.0,0.00020821,2]
[362903751,1748518246350,-430.0,0.00020821,2]
[362903753,1748518246359,-430.0,0.00020821,2]
[362903755,1748518246368,-457.55,0.00020821,2]
[362903757,1748518246378,-430.0,0.00020821,2]
[362903759,1748518246387,-2174.08,0.00020821,2]
[362903761,1748518246396,-430.0,0.00020821,2]
[362903763,1748518246406,-430.0,0.00020821,2]
[362903765,1748518246416,-430.0,0.00020821,2]
[362903767,1748518246426,-430.0,0.00020821,2]
[362903769,1748518246435,-430.0,0.00020821,2]
[362903771,1748518246444,-541.87,0.00020821,2]
[362903773,1748518246454,-1771.6,0.00020821,2]
[362903775,1748518246463,-430.0,0.00020821,2]
[362903777,1748518246471,-747.17179153,0.00020969,4]
[362903779,1748518246481,-430.0,0.00021095,2]
[362903781,1748518246490,-430.0,0.00021095,2]
[362903783,1748518246502,-430.0,0.00021095,2]
[362903785,1748518246511,-430.0,0.00021095,2]
[362903787,1748518246520,-430.0,0.00021095,2]
[362903789,1748518246529,-430.0,0.00021095,2]
[362903791,1748518246538,-430.0,0.00021095,2]
[362903793,1748518246547,-430.0,0.00021095,2]
[362903795,1748518246557,-430.0,0.00021095,2]
[362903797,1748518246566,-505.68,0.00021095,2]
[362903799,1748518246575,-821.8,0.00021095,2]
[362903801,1748518246584,-430.0,0.00021095,2]
[362903803,1748518246593,-457.65,0.00021095,2]
[362903805,1748518246603,-430.0,0.00021095,2]
[362903807,1748518246612,-293.06623274,0.00021095,2]
[362903809,1748518246621,-430.0,0.00021095,2]
[362903811,1748518246630,-430.0,0.00021095,2]
[362903813,1748518246639,-1210.48,0.00021095,2]
[362903814,1748518246648,-181.01,0.00021095,2]
[362903816,1748518246657,-430.0,0.00021095,2]
[362903818,1748518246666,-457.55,0.00021095,2]
[362903820,1748518246674,-430.0,0.00021095,2]
[362903822,1748518246682,-2174.08,0.00021095,2]
[362903824,1748518246690,-430.0,0.00021095,2]
[362903826,1748518246698,-430.0,0.00021095,2]
[362903828,1748518246707,-475.69,0.00021095,2]
[362903830,1748518246716,-430.0,0.00021095,2]
[362903832,1748518246724,-541.87,0.00021095,2]
[362903834,1748518246732,-1771.6,0.00021095,2]
[362903836,1748518246741,-430.0,0.00021095,2]
[362903838,1748518246753,-500.0,0.00021164,2]
[362903840,1748518246763,-747.17179153,0.00021176,4]
[362903842,1748518246772,-430.0,0.00021369,2]
[362903843,1748518246782,-430.0,0.00021369,2]
[362903844,1748518246791,-475.52,0.00021369,2]
[362903845,1748518246800,-430.0,0.00021369,2]
[362903846,1748518246810,-430.0,0.00021369,2]
[362903847,1748518246819,-430.0,0.00021369,2]
[362903848,1748518246828,-430.0,0.00021369,2]
[362903849,1748518246837,-287.67,0.00021369,2]
[362903850,1748518246847,-821.8,0.00021369,2]
[362903851,1748518246857,-430.0,0.00021369,2]
[362903852,1748518246870,-430.0,0.00021369,2]
[362903853,1748518246879,-430.0,0.00021369,2]
[362903854,1748518246889,-430.0,0.00021369,2]
[362903855,1748518246899,-1210.48,0.00021369,2]
[362903857,1748518246910,-195.41,0.00021369,2]
[362903859,1748518246919,-457.55,0.00021369,2]
[362903861,1748518246928,-163.45,0.00021369,2]
[362903863,1748518246938,-2174.08,0.00021369,2]
[362903864,1748518246949,-430.0,0.00021369,2]
[362903867,1748518246959,-430.0,0.00021369,2]
[362903869,1748518246968,-430.0,0.00021369,2]
[362903871,1748518246978,-541.87,0.00021369,2]
[362903872,1748518246987,-1771.6,0.00021369,2]
[362903874,1748518246997,-430.0,0.00021369,2]
[362903877,1748518247008,-747.17179153,0.00021383,5]
[362903879,1748518247019,-287.0,0.00021428,2]
[362903881,1748518247029,-747.17179153,0.0002159,5]
[362903883,1748518247038,-430.0,0.00021643,2]
[362903885,1748518247047,-430.0,0.00021643,2]
[362903887,1748518247057,-430.0,0.00021643,2]
[362903889,1748518247066,-430.0,0.00021643,2]
[362903891,1748518247075,-430.0,0.00021643,2]
[362903893,1748518247085,-430.0,0.00021643,2]
[362903895,1748518247094,-821.8,0.00021643,2]
[362903897,1748518247103,-430.0,0.00021643,2]
[362903899,1748518247112,-430.0,0.00021643,2]
[362903901,1748518247122,-430.0,0.00021643,2]
[362903903,1748518247132,-430.0,0.00021643,2]
[362903905,1748518247141,-1210.48,0.00021643,2]
[362903907,1748518247151,-457.55,0.00021643,2]
[362903909,1748518247161,-2174.08,0.00021643,2]
[362903911,1748518247170,-430.0,0.00021643,2]
[362903913,1748518247180,-569.77,0.00021643,2]
[362903914,1748518247189,-430.0,0.00021643,2]
[362903916,1748518247199,-541.87,0.00021643,2]
[362903918,1748518247209,-1771.6,0.00021643,2]
[362903920,1748518247219,-430.0,0.00021643,2]
[362903922,1748518247228,-500.0,0.00021686,2]
[362903924,1748518247239,-747.17179153,0.00021797,6]
[362903926,1748518247249,-430.0,0.00021917,2]
[362903929,1748518247259,-430.0,0.00021917,2]
[362903930,1748518247268,-283.99,0.00021917,2]
[362903932,1748518247278,-430.0,0.00021917,2]
[362903935,1748518247288,-430.0,0.00021917,2]
[362903936,1748518247298,-430.0,0.00021917,2]
[362903939,1748518247307,-821.8,0.00021917,2]
[362903941,1748518247317,-430.0,0.00021917,2]
[362903943,1748518247326,-430.0,0.00021917,2]
[362903944,1748518247336,-567.62,0.00021917,2]
[362903947,1748518247347,-430.0,0.00021917,2]
[362903949,1748518247357,-1210.48,0.00021917,2]
[362903950,1748518247367,-457.55,0.00021917,2]
[362903952,1748518247376,-2174.08,0.00021917,2]
[362903954,1748518247386,-430.0,0.00021917,2]
[362903956,1748518247395,-430.0,0.00021917,2]
[362903958,1748518247405,-541.87,0.00021917,2]
[362903960,1748518247416,-1771.6,0.00021917,2]
[362903963,1748518247426,-430.0,0.00021917,2]
[362903964,1748518247436,-719.11481591,0.00021939,2]